[Event "Early-Titled-Tuesday-Blitz-February-27-2024"]
[Site "Chess.com"]
[Date "2024.02.27"]
[Round "2"]
[White "AndreyOstrovskiy"]
[Black "mishanick"]
[Result "1-0"]
[WhiteElo "2669"]
[BlackElo "3078"]
[TimeControl "180+1"]
[EndTime "8:18:56 PST"]
[Termination "AndreyOstrovskiy won by resignation"]

1. e4 {[%clk 0:02:59.6]} 1... c5 {[%clk 0:03:00.3]} 2. Nf3 {[%clk 0:02:59.5]}
2... e6 {[%clk 0:02:58.6]} 3. d4 {[%clk 0:02:59.7]} 3... cxd4 {[%clk 0:02:59.5]}
4. Nxd4 {[%clk 0:02:59.9]} 4... Nc6 {[%clk 0:03:00.2]} 5. Nc3 {[%clk 0:02:59.2]}
5... a6 {[%clk 0:02:59.6]} 6. Nxc6 {[%clk 0:02:58.5]} 6... bxc6 {[%clk
0:02:59.7]} 7. Bd3 {[%clk 0:02:58.8]} 7... d5 {[%clk 0:02:59.9]} 8. Qe2 {[%clk
0:02:59.2]} 8... Nf6 {[%clk 0:03:00.1]} 9. Bd2 {[%clk 0:02:58.7]} 9... Be7
{[%clk 0:03:00.3]} 10. O-O {[%clk 0:02:58.6]} 10... O-O {[%clk 0:02:59.4]} 11.
f4 {[%clk 0:02:57.8]} 11... a5 {[%clk 0:02:59.7]} 12. Kh1 {[%clk 0:02:56.2]}
12... Re8 {[%clk 0:02:43.5]} 13. b3 {[%clk 0:02:50.5]} 13... Nd7 {[%clk
0:02:41.4]} 14. Na4 {[%clk 0:02:47.9]} 14... Bb7 {[%clk 0:02:30.8]} 15. c4
{[%clk 0:02:46.2]} 15... c5 {[%clk 0:02:30]} 16. cxd5 {[%clk 0:02:44.7]} 16...
exd5 {[%clk 0:02:30.3]} 17. e5 {[%clk 0:02:44.2]} 17... Nb6 {[%clk 0:02:24.6]}
18. Nxb6 {[%clk 0:02:38.7]} 18... Qxb6 {[%clk 0:02:25.5]} 19. Rf3 {[%clk
0:02:36.8]} 19... g6 {[%clk 0:02:17.3]} 20. f5 {[%clk 0:02:34]} 20... c4 {[%clk
0:01:57.7]} 21. fxg6 {[%clk 0:01:54.6]} 21... hxg6 {[%clk 0:01:56.8]} 22. bxc4
{[%clk 0:01:54]} 22... dxc4 {[%clk 0:01:54.2]} 23. Bxc4 {[%clk 0:01:54.3]} 23...
Bxf3 {[%clk 0:01:52.7]} 24. Qxf3 {[%clk 0:01:55.2]} 24... Rf8 {[%clk 0:01:52]}
25. Rf1 {[%clk 0:01:48.1]} 25... Kg7 {[%clk 0:01:23.3]} 26. Bxf7 {[%clk
0:01:40.1]} 26... Rh8 {[%clk 0:00:54.4]} 27. e6 {[%clk 0:01:06.8]} 27... Qd4
{[%clk 0:00:39]} 28. Be3 {[%clk 0:00:31.9]} 28... Qf6 {[%clk 0:00:18.3]} 29.
Qxf6+ {[%clk 0:00:19.3]} 29... Bxf6 {[%clk 0:00:18.3]} 30. g3 {[%clk 0:00:17.9]}
30... Rhd8 {[%clk 0:00:14.9]} 31. Kg2 {[%clk 0:00:17.9]} 31... Rd3 {[%clk
0:00:15]} 32. Bf4 {[%clk 0:00:12.7]} 32... Rc8 {[%clk 0:00:14.2]} 33. h4 {[%clk
0:00:12.1]} 33... Rc2+ {[%clk 0:00:14.3]} 34. Kh3 {[%clk 0:00:12.4]} 34... Rcc3
{[%clk 0:00:05.4]} 35. Rb1 {[%clk 0:00:10.9]} 35... Rd4 {[%clk 0:00:03.2]} 36.
Kg4 {[%clk 0:00:10.7]} 36... Re4 {[%clk 0:00:02.1]} 37. Rb8 {[%clk 0:00:10.4]}
37... Kh7 {[%clk 0:00:01.2]} 38. Rg8 {[%clk 0:00:09.1]} 38... Bg7 {[%clk
0:00:01.8]} 39. Re8 {[%clk 0:00:08.6]} 39... Bf6 {[%clk 0:00:02]} 40. Rg8 {[%clk
0:00:08.5]} 40... Rxe6 {[%clk 0:00:01.4]} 41. Bxe6 {[%clk 0:00:08.5]} 41... Rc6
{[%clk 0:00:01.2]} 42. Re8 {[%clk 0:00:08.1]} 42... Kg7 {[%clk 0:00:01.4]} 43.
Rg8+ {[%clk 0:00:08.1]} 43... Kh7 {[%clk 0:00:01.6]} 44. Re8 {[%clk 0:00:08.6]}
44... a4 {[%clk 0:00:02.2]} 45. Bd5 {[%clk 0:00:08.8]} 45... Rc5 {[%clk
0:00:02.5]} 46. Bg8+ {[%clk 0:00:08.9]} 46... Kg7 {[%clk 0:00:02.6]} 47. Be6
{[%clk 0:00:09.1]} 47... Rc6 {[%clk 0:00:03.3]} 48. Rg8+ {[%clk 0:00:09]} 48...
Kh7 {[%clk 0:00:03.5]} 49. Re8 {[%clk 0:00:09.5]} 49... Kg7 {[%clk 0:00:03.6]}
50. Bd7 {[%clk 0:00:09.9]} 50... Rc2 {[%clk 0:00:03.9]} 51. Bxa4 {[%clk
0:00:09.7]} 51... Rxa2 {[%clk 0:00:04.5]} 52. Rg8+ {[%clk 0:00:09.9]} 52... Kh7
{[%clk 0:00:04.3]} 53. Ra8 {[%clk 0:00:09.2]} 53... Bg7 {[%clk 0:00:03.6]} 54.
h5 {[%clk 0:00:09.3]} 54... gxh5+ {[%clk 0:00:03.9]} 55. Kxh5 {[%clk 0:00:09.8]}
55... Rh2+ {[%clk 0:00:04]} 56. Kg4 {[%clk 0:00:10.3]} 56... Bb2 {[%clk
0:00:04.7]} 57. Bc6 {[%clk 0:00:09.8]} 57... Kg6 {[%clk 0:00:04.6]} 58. Be4+
{[%clk 0:00:10.2]} 58... Kf6 {[%clk 0:00:05.2]} 59. Ra6+ {[%clk 0:00:10.2]}
59... Ke7 {[%clk 0:00:05.6]} 60. Kf5 {[%clk 0:00:09.6]} 60... Rh5+ {[%clk
0:00:05.4]} 61. Bg5+ {[%clk 0:00:09.9]} 61... Kd7 {[%clk 0:00:05.1]} 62. g4
{[%clk 0:00:10.5]} 62... Rh2 {[%clk 0:00:04.8]} 63. Bf4 {[%clk 0:00:10.7]} 63...
Rf2 {[%clk 0:00:05]} 64. Bd5 {[%clk 0:00:09.8]} 64... Bc1 {[%clk 0:00:04.7]} 65.
Ra7+ {[%clk 0:00:09.6]} 65... Kd8 {[%clk 0:00:05]} 66. Ra4 {[%clk 0:00:10]}
66... Kd7 {[%clk 0:00:05.3]} 67. Re4 {[%clk 0:00:09.8]} 67... Rf1 {[%clk
0:00:04.5]} 68. g5 {[%clk 0:00:10]} 68... Bb2 {[%clk 0:00:03.6]} 69. g6 {[%clk
0:00:09.6]} 69... Rg1 {[%clk 0:00:04]} 70. Bf7 {[%clk 0:00:10.1]} 70... Rg2
{[%clk 0:00:03.9]} 71. Be5 {[%clk 0:00:09.9]} 71... Rf2+ {[%clk 0:00:03.7]} 72.
Rf4 {[%clk 0:00:10.3]} 72... Rg2 {[%clk 0:00:02]} 73. Bxb2 {[%clk 0:00:10.3]}
73... Rxb2 {[%clk 0:00:02.9]} 74. g7 {[%clk 0:00:10.7]} 74... Rg2 {[%clk
0:00:03.6]} 75. Rg4 {[%clk 0:00:11.1]} 1-0

[Event "Early-Titled-Tuesday-Blitz-February-27-2024"]
[Site "Chess.com"]
[Date "2024.02.27"]
[Round "2"]
[White "Smile2005"]
[Black "ScofieldMichael01"]
[Result "1/2-1/2"]
[WhiteElo "2386"]
[BlackElo "2605"]
[TimeControl "180+1"]
[EndTime "8:19:09 PST"]
[Termination "Game drawn - insufficient material"]

1. e4 {[%clk 0:03:00.9]} 1... e6 {[%clk 0:02:55.1]} 2. d4 {[%clk 0:03:00.8]}
2... d5 {[%clk 0:02:56]} 3. Nd2 {[%clk 0:03:01.7]} 3... Nf6 {[%clk 0:02:55.9]}
4. e5 {[%clk 0:03:01.8]} 4... Nfd7 {[%clk 0:02:56.6]} 5. Bd3 {[%clk 0:03:02.4]}
5... c5 {[%clk 0:02:57.5]} 6. c3 {[%clk 0:03:03.3]} 6... Nc6 {[%clk 0:02:58.4]}
7. Ne2 {[%clk 0:03:03.6]} 7... cxd4 {[%clk 0:02:58.8]} 8. cxd4 {[%clk
0:03:04.5]} 8... f6 {[%clk 0:02:59.7]} 9. exf6 {[%clk 0:03:04.8]} 9... Nxf6
{[%clk 0:03:00.6]} 10. O-O {[%clk 0:03:05]} 10... Bd6 {[%clk 0:03:01]} 11. Nf3
{[%clk 0:03:04.8]} 11... Qc7 {[%clk 0:03:01.6]} 12. h3 {[%clk 0:03:01.3]} 12...
O-O {[%clk 0:03:01.8]} 13. Re1 {[%clk 0:03:01]} 13... Bd7 {[%clk 0:03:02]} 14.
a3 {[%clk 0:02:59.7]} 14... a5 {[%clk 0:03:01.3]} 15. Be3 {[%clk 0:02:56.8]}
15... Rae8 {[%clk 0:02:52.1]} 16. Rc1 {[%clk 0:02:54.4]} 16... Qb8 {[%clk
0:02:48.6]} 17. Qc2 {[%clk 0:02:35.9]} 17... Re7 {[%clk 0:02:46.9]} 18. Qd2
{[%clk 0:02:22.3]} 18... Be8 {[%clk 0:02:44.7]} 19. Bf4 {[%clk 0:02:18.5]} 19...
Ne4 {[%clk 0:02:16.4]} 20. Bxd6 {[%clk 0:02:08.7]} 20... Nxd2 {[%clk 0:02:16.2]}
21. Bxb8 {[%clk 0:02:05.3]} 21... Nxf3+ {[%clk 0:02:15.8]} 22. gxf3 {[%clk
0:02:05]} 22... Nxb8 {[%clk 0:02:16.3]} 23. f4 {[%clk 0:01:54.5]} 23... Nc6
{[%clk 0:02:15.3]} 24. Kg2 {[%clk 0:01:53.1]} 24... Bh5 {[%clk 0:02:14.8]} 25.
f3 {[%clk 0:01:53.1]} 25... g5 {[%clk 0:02:06.7]} 26. Kf2 {[%clk 0:01:23.3]}
26... gxf4 {[%clk 0:02:06.1]} 27. Rg1+ {[%clk 0:01:22.8]} 27... Rg7 {[%clk
0:02:05.2]} 28. Rxg7+ {[%clk 0:01:21.4]} 28... Kxg7 {[%clk 0:02:06.1]} 29. Bb5
{[%clk 0:01:14.5]} 29... Be8 {[%clk 0:02:02.7]} 30. Rg1+ {[%clk 0:01:10.2]}
30... Bg6 {[%clk 0:01:57.5]} 31. Bxc6 {[%clk 0:00:59.6]} 31... bxc6 {[%clk
0:01:58.4]} 32. Rg4 {[%clk 0:00:59.5]} 32... Rb8 {[%clk 0:01:54.6]} 33. b4
{[%clk 0:00:51.9]} 33... axb4 {[%clk 0:01:54]} 34. axb4 {[%clk 0:00:52.8]} 34...
Rxb4 {[%clk 0:01:54.6]} 35. Nxf4 {[%clk 0:00:53.2]} 35... Kf6 {[%clk 0:01:53]}
36. Ne2 {[%clk 0:00:36.1]} 36... Bf5 {[%clk 0:01:50.9]} 37. Rg8 {[%clk
0:00:31.7]} 37... Bxh3 {[%clk 0:01:49.7]} 38. Rc8 {[%clk 0:00:29.3]} 38... Rc4
{[%clk 0:01:48.5]} 39. Ke3 {[%clk 0:00:24.2]} 39... Bf5 {[%clk 0:01:45.3]} 40.
Ng3 {[%clk 0:00:21.5]} 40... Rc3+ {[%clk 0:01:44.5]} 41. Kf4 {[%clk 0:00:21.7]}
41... Rd3 {[%clk 0:01:38.4]} 42. Nxf5 {[%clk 0:00:21.3]} 42... exf5 {[%clk
0:01:36.1]} 43. Rxc6+ {[%clk 0:00:21.6]} 43... Kg7 {[%clk 0:01:35.6]} 44. Kxf5
{[%clk 0:00:20.5]} 44... Rxd4 {[%clk 0:01:36]} 45. Rc7+ {[%clk 0:00:20.6]} 45...
Kh6 {[%clk 0:01:35.2]} 46. Ke5 {[%clk 0:00:20.4]} 46... Rd3 {[%clk 0:01:33.2]}
47. f4 {[%clk 0:00:20.7]} 47... d4 {[%clk 0:01:30.7]} 48. Ke4 {[%clk 0:00:20.4]}
48... Rd1 {[%clk 0:01:30.7]} 49. Rd7 {[%clk 0:00:20.6]} 49... Kg6 {[%clk
0:01:29.1]} 50. Rxd4 {[%clk 0:00:20.4]} 50... Re1+ {[%clk 0:01:18]} 51. Kf3
{[%clk 0:00:20]} 51... Ra1 {[%clk 0:01:16.8]} 52. Rd6+ {[%clk 0:00:19.7]} 52...
Kf5 {[%clk 0:01:17.1]} 53. Rd5+ {[%clk 0:00:20.2]} 53... Ke6 {[%clk 0:01:17.5]}
54. Rh5 {[%clk 0:00:20.8]} 54... Rf1+ {[%clk 0:01:12.5]} 55. Ke4 {[%clk
0:00:20.5]} 55... Re1+ {[%clk 0:01:12.4]} 56. Kd3 {[%clk 0:00:20.6]} 56... Rd1+
{[%clk 0:01:11.4]} 57. Ke2 {[%clk 0:00:20.8]} 57... Rd4 {[%clk 0:01:10.1]} 58.
Ke3 {[%clk 0:00:21]} 58... Rd7 {[%clk 0:01:09.6]} 59. Ke4 {[%clk 0:00:21.4]}
59... Kf6 {[%clk 0:01:08.8]} 60. Rh6+ {[%clk 0:00:21.8]} 60... Kg7 {[%clk
0:01:09.2]} 61. Re6 {[%clk 0:00:22.2]} 61... h6 {[%clk 0:01:08.6]} 62. f5 {[%clk
0:00:22.4]} 62... Rd1 {[%clk 0:01:08.4]} 63. Rg6+ {[%clk 0:00:22.4]} 63... Kh7
{[%clk 0:01:07.7]} 64. Rg2 {[%clk 0:00:22.8]} 64... h5 {[%clk 0:01:05.5]} 65. f6
{[%clk 0:00:22.2]} 65... Rf1 {[%clk 0:01:04.5]} 66. Ke5 {[%clk 0:00:22.5]} 66...
Kh6 {[%clk 0:01:02.7]} 67. Ke6 {[%clk 0:00:22.7]} 67... h4 {[%clk 0:01:03.1]}
68. Ke7 {[%clk 0:00:21.8]} 68... Kh5 {[%clk 0:01:03.3]} 69. f7 {[%clk
0:00:21.8]} 69... h3 {[%clk 0:01:02.2]} 70. Rg3 {[%clk 0:00:18.1]} 70... Kh4
{[%clk 0:01:02.3]} 71. Rg6 {[%clk 0:00:18.2]} 71... h2 {[%clk 0:00:56.7]} 72.
Rf6 {[%clk 0:00:17.4]} 72... Re1+ {[%clk 0:00:51.6]} 73. Kd8 {[%clk 0:00:15.5]}
73... Rd1+ {[%clk 0:00:49.9]} 74. Kc7 {[%clk 0:00:15.4]} 74... Rc1+ {[%clk
0:00:50.1]} 75. Kb6 {[%clk 0:00:15.6]} 75... Rb1+ {[%clk 0:00:48.2]} 76. Kc5
{[%clk 0:00:15.8]} 76... Rc1+ {[%clk 0:00:47.5]} 77. Kd4 {[%clk 0:00:15.7]}
77... Rd1+ {[%clk 0:00:39.5]} 78. Ke3 {[%clk 0:00:15.4]} 78... h1=Q {[%clk
0:00:33.3]} 79. Rh6+ {[%clk 0:00:15.2]} 79... Kg5 {[%clk 0:00:33.9]} 80. Rxh1
{[%clk 0:00:15.5]} 80... Rd8 {[%clk 0:00:32.4]} 81. Rf1 {[%clk 0:00:13.7]} 81...
Rf8 {[%clk 0:00:32.5]} 82. Ke4 {[%clk 0:00:13.5]} 82... Kg6 {[%clk 0:00:33.2]}
83. Ke5 {[%clk 0:00:13.7]} 83... Rxf7 {[%clk 0:00:34.1]} 84. Rg1+ {[%clk
0:00:13.8]} 84... Kh7 {[%clk 0:00:34.3]} 85. Ke6 {[%clk 0:00:13.1]} 85... Rg7
{[%clk 0:00:33.8]} 86. Rxg7+ {[%clk 0:00:12]} 86... Kxg7 {[%clk 0:00:34.7]}
1/2-1/2

[Event "Early-Titled-Tuesday-Blitz-February-27-2024"]
[Site "Chess.com"]
[Date "2024.02.27"]
[Round "2"]
[White "Juwen"]
[Black "KuzubovYuriy"]
[Result "0-1"]
[WhiteElo "2616"]
[BlackElo "2955"]
[TimeControl "180+1"]
[EndTime "8:19:15 PST"]
[Termination "KuzubovYuriy won on time"]

1. e4 {[%clk 0:03:00.9]} 1... e5 {[%clk 0:03:00.4]} 2. Nf3 {[%clk 0:03:00.7]}
2... Nf6 {[%clk 0:03:01.1]} 3. Nxe5 {[%clk 0:02:56.7]} 3... d6 {[%clk
0:03:00.3]} 4. Nf3 {[%clk 0:02:56.3]} 4... Nxe4 {[%clk 0:03:00.6]} 5. Qe2 {[%clk
0:02:56.5]} 5... Qe7 {[%clk 0:03:00.4]} 6. d3 {[%clk 0:02:56.4]} 6... Nf6 {[%clk
0:03:00.1]} 7. Nc3 {[%clk 0:02:55.4]} 7... Nbd7 {[%clk 0:02:56.6]} 8. Bg5 {[%clk
0:02:54.7]} 8... h6 {[%clk 0:02:52.2]} 9. Bh4 {[%clk 0:02:54.4]} 9... Qxe2+
{[%clk 0:02:49.9]} 10. Bxe2 {[%clk 0:02:53.2]} 10... Be7 {[%clk 0:02:50.5]} 11.
O-O-O {[%clk 0:02:47.7]} 11... Kd8 {[%clk 0:02:47.5]} 12. h3 {[%clk 0:02:42.4]}
12... Re8 {[%clk 0:02:45]} 13. Rhe1 {[%clk 0:02:40.3]} 13... Nb6 {[%clk
0:02:44]} 14. d4 {[%clk 0:02:36.7]} 14... Nh5 {[%clk 0:02:32.7]} 15. Bxe7+
{[%clk 0:02:15.6]} 15... Rxe7 {[%clk 0:02:31.5]} 16. Bf1 {[%clk 0:02:09.4]}
16... Bd7 {[%clk 0:02:27.3]} 17. g3 {[%clk 0:01:34.7]} 17... Bc6 {[%clk
0:02:10.8]} 18. Nh4 {[%clk 0:01:33.8]} 18... g6 {[%clk 0:02:10]} 19. Bg2 {[%clk
0:01:28.2]} 19... Bxg2 {[%clk 0:02:07.6]} 20. Nxg2 {[%clk 0:01:29.1]} 20... Kd7
{[%clk 0:02:03]} 21. Rxe7+ {[%clk 0:01:28.5]} 21... Kxe7 {[%clk 0:02:02.9]} 22.
Re1+ {[%clk 0:01:29]} 22... Kd7 {[%clk 0:02:02.2]} 23. b3 {[%clk 0:01:28.2]}
23... Rf8 {[%clk 0:01:57.2]} 24. Kd2 {[%clk 0:01:24.8]} 24... g5 {[%clk
0:01:53.7]} 25. h4 {[%clk 0:01:20.1]} 25... g4 {[%clk 0:01:48.9]} 26. Ne2 {[%clk
0:01:13]} 26... Nd5 {[%clk 0:01:47.3]} 27. c4 {[%clk 0:01:11.3]} 27... Ndf6
{[%clk 0:01:46.6]} 28. Nef4 {[%clk 0:01:10.7]} 28... Ng7 {[%clk 0:01:45.5]} 29.
Kd3 {[%clk 0:01:00.1]} 29... c6 {[%clk 0:01:43.2]} 30. Ne3 {[%clk 0:00:59.4]}
30... Ne6 {[%clk 0:01:40.3]} 31. Neg2 {[%clk 0:00:49.8]} 31... a5 {[%clk
0:01:37.7]} 32. Rf1 {[%clk 0:00:45.1]} 32... Rg8 {[%clk 0:01:29.1]} 33. f3
{[%clk 0:00:41]} 33... Ke7 {[%clk 0:01:16.1]} 34. fxg4 {[%clk 0:00:35]} 34...
Nxg4 {[%clk 0:01:09.3]} 35. Nh5 {[%clk 0:00:23.6]} 35... Ng7 {[%clk 0:00:59.2]}
36. Re1+ {[%clk 0:00:20.3]} 36... Kd7 {[%clk 0:00:53.1]} 37. Ngf4 {[%clk
0:00:20.4]} 37... Nf5 {[%clk 0:00:51.5]} 38. Rf1 {[%clk 0:00:17.7]} 38... Ne7
{[%clk 0:00:45.8]} 39. Re1 {[%clk 0:00:17.1]} 39... b5 {[%clk 0:00:39.6]} 40.
Rf1 {[%clk 0:00:16.9]} 40... bxc4+ {[%clk 0:00:39.5]} 41. bxc4 {[%clk
0:00:17.8]} 41... Rb8 {[%clk 0:00:38.2]} 42. Ne2 {[%clk 0:00:17.9]} 42... f5
{[%clk 0:00:33]} 43. Ng7 {[%clk 0:00:16.7]} 43... Rb2 {[%clk 0:00:27.3]} 44.
Nxf5 {[%clk 0:00:16.5]} 44... Rxa2 {[%clk 0:00:27.6]} 45. Nxe7 {[%clk
0:00:16.2]} 45... Kxe7 {[%clk 0:00:27.6]} 46. Nc3 {[%clk 0:00:15.4]} 46... Rg2
{[%clk 0:00:19.4]} 47. Ne2 {[%clk 0:00:14.6]} 47... Rf2 {[%clk 0:00:17.8]} 48.
Ra1 {[%clk 0:00:13.4]} 48... Rf3+ {[%clk 0:00:17]} 49. Kd2 {[%clk 0:00:13.1]}
49... Nf6 {[%clk 0:00:14.2]} 50. Rxa5 {[%clk 0:00:13.2]} 50... Ne4+ {[%clk
0:00:14.4]} 51. Kd1 {[%clk 0:00:11.4]} 51... Nxg3 {[%clk 0:00:13.5]} 52. Nxg3
{[%clk 0:00:11.3]} 52... Rxg3 {[%clk 0:00:13.8]} 53. Rh5 {[%clk 0:00:11.7]}
53... Rg4 {[%clk 0:00:10.9]} 54. d5 {[%clk 0:00:11.8]} 54... c5 {[%clk
0:00:10.6]} 55. Rxh6 {[%clk 0:00:11.1]} 55... Rxc4 {[%clk 0:00:10.9]} 56. Rh5
{[%clk 0:00:10]} 56... Rd4+ {[%clk 0:00:10.3]} 57. Kc2 {[%clk 0:00:09.4]} 57...
Kf6 {[%clk 0:00:11]} 58. Kc3 {[%clk 0:00:09.6]} 58... Kg6 {[%clk 0:00:11.3]} 59.
Rg5+ {[%clk 0:00:09.3]} 59... Kh6 {[%clk 0:00:11.8]} 60. Rf5 {[%clk 0:00:09.6]}
60... Kg6 {[%clk 0:00:12.2]} 61. Rg5+ {[%clk 0:00:09.8]} 61... Kf6 {[%clk
0:00:12.7]} 62. Rh5 {[%clk 0:00:10.3]} 62... Rg4 {[%clk 0:00:12.8]} 63. Kd3
{[%clk 0:00:08.5]} 63... Rf4 {[%clk 0:00:13.2]} 64. Kc3 {[%clk 0:00:07.4]} 64...
Rf5 {[%clk 0:00:13.4]} 65. Rh6+ {[%clk 0:00:06.2]} 65... Ke5 {[%clk 0:00:13.9]}
66. Kc4 {[%clk 0:00:05.9]} 66... Rf4+ {[%clk 0:00:14.3]} 67. Kc3 {[%clk
0:00:04.4]} 67... Kxd5 {[%clk 0:00:14.8]} 68. h5 {[%clk 0:00:04.7]} 68... Rh4
{[%clk 0:00:15.1]} 69. Rh8 {[%clk 0:00:05.2]} 69... Rh3+ {[%clk 0:00:15.4]} 70.
Kc2 {[%clk 0:00:05]} 70... Kd4 {[%clk 0:00:15.5]} 71. h6 {[%clk 0:00:05.8]}
71... d5 {[%clk 0:00:15.9]} 72. h7 {[%clk 0:00:04.2]} 72... c4 {[%clk
0:00:16.1]} 73. Kd2 {[%clk 0:00:04.7]} 73... Rh2+ {[%clk 0:00:16.1]} 74. Ke1
{[%clk 0:00:05.1]} 74... Kd3 {[%clk 0:00:14.1]} 75. Rd8 {[%clk 0:00:03.8]} 75...
Rh1+ {[%clk 0:00:14.4]} 76. Kf2 {[%clk 0:00:03.3]} 76... Rxh7 {[%clk 0:00:15]}
77. Rxd5+ {[%clk 0:00:03.4]} 77... Kc2 {[%clk 0:00:15.6]} 78. Ke2 {[%clk
0:00:02.2]} 78... Re7+ {[%clk 0:00:14.5]} 79. Kf3 {[%clk 0:00:01.9]} 79... c3
{[%clk 0:00:15]} 80. Rb5 {[%clk 0:00:02.2]} 80... Kd1 {[%clk 0:00:15.1]} 81.
Rd5+ {[%clk 0:00:01.5]} 81... Kc1 {[%clk 0:00:15.5]} 82. Rh5 {[%clk 0:00:02.1]}
82... c2 {[%clk 0:00:15.7]} 83. Rh1+ {[%clk 0:00:01.4]} 83... Kb2 {[%clk
0:00:15.7]} 0-1